{"text_format":"1","workbook":"xlsx","n_sheets":7,"sheets":["Start","Import","Wniosek z Planu","tech","Jednostki","Importowane z Planu dane","Lista"],"not_rendered":{"charts":0,"images":3,"macros":1,"external_links":1,"defined_names":21,"comments":0,"pivot_tables":0},"unopened":[],"bounds":{"document_bytes":16777216,"sheet_cells":100000,"rows_first":2000,"rows_last":500,"rows_between":2000,"halvings":0,"cell_chars":16384,"cell_head_chars":4096},"cells_cut":0,"cells_raw":0,"read":"whole","date_system":"1900"}

{"sheet":"Start","index":0,"n_rows":10,"n_cols":10,"rows_kept":10,"cut":false,"hidden":false,"merged":[[8,1,8,9],[9,1,9,9],[10,1,10,9],[16,1,16,9]]}
[]
[]
[]
[]
[]
[]
[]
[]
[null,"Generator wniosków","Kwestionariusz planowanych projektów rewitalizacyjnych","Kwestionariusz planowanych projektów rewitalizacyjnych","Kwestionariusz planowanych projektów rewitalizacyjnych","Kwestionariusz planowanych projektów rewitalizacyjnych","Kwestionariusz planowanych projektów rewitalizacyjnych","Kwestionariusz planowanych projektów rewitalizacyjnych","Kwestionariusz planowanych projektów rewitalizacyjnych","Kwestionariusz planowanych projektów rewitalizacyjnych"]
[null,"Niniejszy formularz przeznaczony jest do generowania wniosków o wszczęcie postępowania z planu i poza planem.","Niniejszy formularz przeznaczony jest do zgłaszania informacji na temat projektów z zakresu rewitalizacji obszarów miejskich. Wprowadzone dane użyte zostaną w toku analizy możliwości wykorzystania mechanizmu JESSICA do finansowania projektów w województwie łódzkim.","Niniejszy formularz przeznaczony jest do zgłaszania informacji na temat projektów z zakresu rewitalizacji obszarów miejskich. Wprowadzone dane użyte zostaną w toku analizy możliwości wykorzystania mechanizmu JESSICA do finansowania projektów w województwie łódzkim.","Niniejszy formularz przeznaczony jest do zgłaszania informacji na temat projektów z zakresu rewitalizacji obszarów miejskich. Wprowadzone dane użyte zostaną w toku analizy możliwości wykorzystania mechanizmu JESSICA do finansowania projektów w województwie łódzkim.","Niniejszy formularz przeznaczony jest do zgłaszania informacji na temat projektów z zakresu rewitalizacji obszarów miejskich. Wprowadzone dane użyte zostaną w toku analizy możliwości wykorzystania mechanizmu JESSICA do finansowania projektów w województwie łódzkim.","Niniejszy formularz przeznaczony jest do zgłaszania informacji na temat projektów z zakresu rewitalizacji obszarów miejskich. Wprowadzone dane użyte zostaną w toku analizy możliwości wykorzystania mechanizmu JESSICA do finansowania projektów w województwie łódzkim.","Niniejszy formularz przeznaczony jest do zgłaszania informacji na temat projektów z zakresu rewitalizacji obszarów miejskich. Wprowadzone dane użyte zostaną w toku analizy możliwości wykorzystania mechanizmu JESSICA do finansowania projektów w województwie łódzkim.","Niniejszy formularz przeznaczony jest do zgłaszania informacji na temat projektów z zakresu rewitalizacji obszarów miejskich. Wprowadzone dane użyte zostaną w toku analizy możliwości wykorzystania mechanizmu JESSICA do finansowania projektów w województwie łódzkim.","Niniejszy formularz przeznaczony jest do zgłaszania informacji na temat projektów z zakresu rewitalizacji obszarów miejskich. Wprowadzone dane użyte zostaną w toku analizy możliwości wykorzystania mechanizmu JESSICA do finansowania projektów w województwie łódzkim."]

{"sheet":"Import","index":1,"n_rows":17,"n_cols":2,"rows_kept":17,"cut":false,"hidden":false,"merged":[]}
[]
[null,"Generowanie wniosku z planu zamówień publicznych"]
[]
[]
[]
[]
[]
[]
[]
[]
[]
[null,"1. Podaj liczbę porządkową (Lp.) z Planu"]
[]
[null,"Liczba porządkowa"]
[null,55]
[]
[null,"3. Kliknij przycisk uruchamiający import"]

{"sheet":"Wniosek z Planu","index":2,"n_rows":92,"n_cols":4,"rows_kept":92,"cut":false,"hidden":false,"merged":[[84,0,84,1],[3,0,3,1],[55,0,55,1],[54,0,54,1],[52,0,52,1],[53,0,53,1],[41,0,41,1],[40,0,40,1],[5,0,5,1],[42,0,42,1],[70,0,70,1],[45,0,45,1],[46,0,46,1],[68,0,68,1],[69,0,69,1],[56,0,56,1],[85,0,85,1],[67,0,67,1],[1,0,1,1],[2,0,2,1],[31,0,31,1],[58,0,58,1],[59,0,59,1],[32,0,32,1],[34,0,34,1],[35,0,35,1],[36,0,36,1],[37,0,37,1],[38,0,38,1],[39,0,39,1],[44,0,44,1],[43,0,43,1],[57,0,57,1],[47,0,47,1],[48,0,48,1],[49,0,49,1],[50,0,50,1],[51,0,51,1]]}
[]
["Wniosek o udzielenie zamówienia publicznego"]
["KTÓRE JEST UJĘTE W PLANIE ZAMÓWIEŃ PUBLICZNYCH",null,null,"Załączniki do Procedur udzielania zamówień publicznych w Ministerstwie Klimatu i Środowiska\nZałącznik nr 6"]
["ZATWIERDZAM"]
[]
["DYREKTOR GENERALNY MINISTERSTWA KLIMATU I ŚRODOWISKA\n/ MINISTER KLIMATU I ŚRODOWISKA*\nKierownik Zamawiającego\n* niepotrzebne skreślić"]
[]
["1. Data wniosku"]
["2. Numer pozycji w planie "]
["3. Numer postępowania (uzupełnia Wydział Zamówień Publicznych)"]
["4. Komórka zamawiająca"]
["5. Osoba wskazana do kontaktów (imię i nazwisko, telefon, e-mail)"]
["6. Przedmiot zamówienia (szczegółowy opis przedmiotu zamówienia należy załączyć do wniosku)"]
["7. Rodzaj zamówienia "]
["8. Kod CPV "]
["9. Szacowana wartość zamówienia (netto PLN) ",null,null,"Kurs EUR"]
["10. Średni kurs PLN w stosunku do EUR zgodnie z przepisami PZP"]
["11. Szacowana wartość zamówienia (netto EUR)",{"$f":"IF(OR(B16=\"\",B16=0,B17=\"\",B17=0),\"\",B16/B17)","v":""}]
["12. Data szacowania wartości"]
["13. Osoba dokonująca szacowania wartości"]
["14. Podstawa szacowania wartości"]
["15. Kwota, jaką zamawiający zamierza przeznaczyć na sfinansowanie zamówienia (brutto PLN)"]
["16. Źródło finansowania (dokument potwierdzający posiadanie środków na realizację zamówienia należy załączyć do wniosku)"]
["17. Tryb"]
["18. Uzasadnienie trybu (dla trybów innych niż przetarg ograniczony \ni nieograniczony)"]
["19. Wymagany termin wykonania zamówienia"]
["20. Termin składania ofert (jeśli dotyczy)"]
["21. Wadium (% wartości szacunkowej zamówienia, jeśli dotyczy)"]
["22. Wadium (PLN)",{"$f":"IF(OR(B28=\"\",B16=\"\"),\"\",B16*B28)","v":""}]
["23. Zabezpieczenie należytego wykonania umowy"]
["24. Zabezpieczenie należytego wykonania umowy (% wartości umowy)"]
["25. Warunki, jakie muszą spełniać wykonawcy, oraz wymagane dokumenty potwierdzające te warunki"]
["O udzielenie zamówienia mogą ubiegać się wykonawcy, którzy:"]
["1) nie podlegają wykluczeniu"]
["2) spełniają warunki udziału w postępowaniu dotyczące:"]
["2.1) kompetencji lub uprawnień do prowadzenia określonej działalności zawodowej, o ile wynika to z odrębnych przepisów;"]
[]
["2.2) sytuacji ekonomicznej lub finansowej"]
[]
["2.3) zdolności technicznej lub zawodowej"]
[]
["3) Zamawiajacy wykluczy z postępowania Wykonawców:"]
["3.1. którzy, nie wykażą spełnienia warunków udziału w postępowaniu, o których mowa w pkt. 2);\n3.2. którzy, nie wykażą, że zachodzą wobec nich przesłanki określone w art. 24 ust 1 pkt 13-23 ustawy Pzp;\n3.3. wobec, których zachodzą przesłanki określone w art. 24 ust. 5 ustawy Pzp (jeśli określono fakultatywne przesłanki)"]
["Na potwierdzenie powyższych warunków Wykonawca dołączy do oferty następujące dokumenty:"]
[]
[]
[]
[]
[]
[]
[]
[]
[]
["W celu potwierdzenia, że oferowane dostawy, usługi lub roboty budowlane odpowiadają wymaganiom określonym przez zamawiającego, Wykonawca załączy:"]
[]
["W celu potwierdzenia spełnienia innych warunków Wykonawca załączy:"]
[]
["Postanowienia dotyczące Wykonawców mających siedzibę lub miejsce zamieszkania poza terytorium Rzeczypospolitej Polskiej"]
[]
["26. Kryteria oceny ofert i ich znaczenie"]
["Kryterium","Znaczenie (w %)"]
[]
[]
[]
[]
[]
[]
["27. Zakres przewidywanych zmian postanowień umowy, która zostanie zawarta z wybranym wykonawcą (jeśli dotyczy)"]
[]
["28. Adresy wykonawców, do których należy wysłać zaproszenia do złożenia ofert (jeśli dotyczy)"]
[]
["29. Imiona i nazwiska osób przygotowujących opis przedmiotu zamówienia"]
["30. Imiona i nazwiska osób dokonujących wyboru trybu udzielenia zamówienia oraz uzasadnienie wyboru tego trybu (w przypadku trybów innych niż przetarg ograniczony i nieograniczony)"]
["31. Imiona i nazwiska osób dokonujących wyboru wykonawców zaproszonych do składania ofert – w trybie zapytania o cenę"]
["32. Imiona i nazwiska osób dokonujących wyboru wykonawcy zaproszonego do negocjacji – w trybie zamówienia z wolnej ręki"]
["33. Imiona i nazwiska osób określające warunki udziału w postępowaniu i sposób oceny wg tych warunków"]
["34. Imiona i nazwiska osób określających kryteria oceny ofert "]
["35. Imiona i nazwiska osób oceniających zgodność złożonych ofert \nz opisem przedmiotu zamówienia"]
["36. Imiona i nazwiska osób dokonujących oceny spełniania przez wykonawców warunków udziału w postępowaniu"]
["37. Uwagi"]
["38. Uzasadnienie braku podziału zamówienia na części"]
["39. Informacje o zastosowanych klauzulach społecznych w przypadku gdy nie zostały one uwzględnione - uzasadnienie niezastosowania"]
["40. Informacje o zastosowanych klauzulach środowiskowych, w przypadku gdy nie zostały one uwzględnione - uzasadnienie niezastosowania"]
["Załączniki:"]
["Szczegółowy Opis Przedmiotu Zamówienia wraz z uzasadnieniem celowości udzielenia zamówienia\n(w formie odrębnego załącznika do niniejszego wniosku, podpisanego przez dyrektora lub zastępcę dyrektora komórki organizacyjnej w Ministerstwie Klimatu zakres należy opisać w sposób wyczerpujący i jednoznaczny\n"]
["Dokument potwierdzający posiadanie środków na realizację zamówienia"]
[]
[]
[]
[]
[]
["Pracownik merytoryczny","Dyrektor komórki organizacyjnej"]

{"sheet":"tech","index":3,"n_rows":3,"n_cols":44,"rows_kept":3,"cut":false,"hidden":true,"merged":[]}
[]
[null,"Numer pozycji w planie ",1,"Numer postępowania",2,"Komórka zamawiająca",3,"Przedmiot zamówienia",4,"Rodzaj zamówienia ",5,"Kod CPV",6,"Szacowana wartość zamówienia (netto PLN) ",7,"Szacowana wartość zamówienia (netto EUR)",8,"Kwota, jaką zamawiający zamierza przeznaczyć na sfinansowanie zamówienia (brutto PLN)",9,"Próg",10,"Źródło finansowania ",11,"Tryb",12,"Data wszczęcia postępowania",13,"Wybrany Wykonawca",14,"Wartość netto","Wartość brutto","Data podpisania umowy",16,"Planowana data realizacji umowy",17,"Uwagi",18,"Numer ogłoszenia o udzielenie zamówienia w Dzienniku Urzędowym UE",19,"Uzasadnienie zastosowania trybu negocjacji bez ogłoszenia lub zamówienia z wolnej ręki",20,"Kraj pochodzenia wybranego wykonawcy lub wykonawców",21,"Wartość umów bez podatku od towarów i usług (w PLN)"]
[{"$f":"IF(OR(H3=\"\",F3=\"\",J3=\"\"),\"\",1)","v":""},{"$f":"IF('Wniosek z Planu'!B9=\"\",\"\",'Wniosek z Planu'!B9)","v":""},null,{"$f":"IF('Wniosek z Planu'!B10=\"\",\"\",'Wniosek z Planu'!B10)","v":""},null,{"$f":"IF('Wniosek z Planu'!B11=\"\",\"\",'Wniosek z Planu'!B11)","v":""},null,{"$f":"IF('Wniosek z Planu'!B13=\"\",\"\",'Wniosek z Planu'!B13)","v":""},null,{"$f":"IF('Wniosek z Planu'!B14=\"\",\"\",'Wniosek z Planu'!B14)","v":""},null,{"$f":"IF('Wniosek z Planu'!B15=\"\",\"\",'Wniosek z Planu'!B15)","v":""},null,{"$f":"IF('Wniosek z Planu'!B16=\"\",\"\",'Wniosek z Planu'!B16)","v":""},null,{"$f":"IF('Wniosek z Planu'!B18=\"\",\"\",'Wniosek z Planu'!B18)","v":""},null,{"$f":"IF('Wniosek z Planu'!B22=\"\",\"\",'Wniosek z Planu'!B22)","v":""},null,null,null,{"$f":"IF('Wniosek z Planu'!B23=\"\",\"\",'Wniosek z Planu'!B23)","v":""},null,{"$f":"IF('Wniosek z Planu'!B24=\"\",\"\",'Wniosek z Planu'!B24)","v":""}]

{"sheet":"Jednostki","index":4,"n_rows":31,"n_cols":3,"rows_kept":31,"cut":false,"hidden":false,"merged":[]}
["Lp.","Jednostki wnioskujące","Skrót"]
[1,"Departament Edukacji Ekologicznej","DEK"]
[2,"Departament Ekonomiczny","DE"]
[3,"Depratament Funduszy Ekologicznych","DFE"]
[4,"Departament Gospodarki Odpadami","DGO"]
[5,"Departament Leśnictwa ","DLOP"]
[6,"Departament Nadzoru Geologicznego","DNG"]
[7,"Departament Ochrony Powietrza i Klimatu","DPK"]
[8,"Departament Ochrony Przyrody","DOP"]
[9,"Departament Polityki Surowcowej i Analiz","DSA"]
[10,"Departament Prawny","DP"]
[11,"Departament Zarządzania Środowiskiem","DZŚ"]
[12,"Departament Zasobów Wodnych","DZW"]
[13,"Departament Zrównoważonego Rozwoju i Współpracy Międzynarodowej","DZM"]
[14,"Biuro Dyrektora Generalnego","BDG"]
[15,"Biuro Finansowe","BF"]
[16,"Biuro Kontroli i Audytu Wewnętrznego","BKF"]
[17,"Biuro Ministra ","BM"]
[18,"Departament Geologii i Koncesji Geologicznych","DGK"]
[19]
[20]
[21]
[22]
[23]
[24]
[25]
[26]
[27]
[28]
[29]
[30]

{"sheet":"Importowane z Planu dane","index":5,"n_rows":32,"n_cols":21,"rows_kept":32,"cut":false,"hidden":true,"merged":[]}
[]
[]
[]
[null,"Lp.",null,"Komórka wnioskująca","Przedmiot zamówienia",null,"Rodzaj zamówienia","Kod CPV",null,null,"Wartość planowana netto PLN","Wartość planowana netto EUR",null,"Wartość planowana brutto PLN","Próg","Źródło finansowania","Proponowany tryb","Miesiąc",null,"Uwagi","Realizacja"]
[null,55,null,0,0,null,0,"",null,null,"","",null,0,"",0,0,0,null,0]
[]
[]
[]
[null,"1. Data wniosku"]
[null,"2. Numer pozycji w planie ",{"$f":"IF(OR(B5=\"\",B5=0),\"\",B5)","v":55}]
[null,"3. Numer postępowania (uzupełnia Wydział Zamówień Publicznych)"]
[null,"4. Komórka zamawiająca",{"$f":"IF(OR(D5=\"\",D5=0),\"\",D5)","v":""}]
[null,"5. Osoba wskazana do kontaktów (imię i nazwisko, telefon, e-mail)"]
[null,"6. Przedmiot zamówienia (szczegółowy opis przedmiotu zamówienia należy załączyć do wniosku)",{"$f":"IF(OR(E5=\"\",E5=0),\"\",E5)","v":""}]
[null,"7. Rodzaj zamówienia ",{"$f":"IF(OR(G5=\"\",G5=0),\"\",G5)","v":""}]
[null,"8. Kod CPV ",{"$f":"IF(OR(H5=\"\",H5=0),\"\",H5)","v":""}]
[null,"9. Szacowana wartość zamówienia (netto PLN) ",{"$f":"IF(OR(K5=\"\",K5=0),\"\",K5)","v":""}]
[null,"10. Średni kurs PLN w stosunku do EUR zgodnie z przepisami PZP",4.0195999999999996]
[null,"11. Szacowana wartość zamówienia (netto EUR)",{"$f":"IF(OR(C17=\"\",C17=0,C18=\"\",C18=0),\"\",C17/C18)","v":""}]
[null,"12. Data szacowania wartości"]
[null,"13. Osoba dokonująca szacowania wartości"]
[null,"14. Podstawa szacowania wartości"]
[null,"15. Kwota, jaką zamawiający zamierza przeznaczyć na sfinansowanie zamówienia (brutto PLN)",{"$f":"IF(OR(N5=\"\",N5=0),\"\",N5)","v":""}]
[null,"16. Źródło finansowania (dokument potwierdzający posiadanie środków na realizację zamówienia należy załączyć do wniosku)",{"$f":"IF(OR(P5=\"\",P5=0),\"\",P5)","v":""}]
[null,"17. Tryb",{"$f":"IF(OR(Q5=\"\",Q5=0),\"\",Q5)","v":""}]
[null,"18. Uzasadnienie trybu (dla trybów innych niż przetarg ograniczony \ni nieograniczony)"]
[null,"19. Wymagany termin wykonania zamówienia"]
[null,"20. Termin składania ofert (jeśli dotyczy)"]
[null,"21. Wadium (% wartości szacunkowej zamówienia, jeśli dotyczy)"]
[null,"22. Wadium (PLN)"]
[null,"23. Zabezpieczenie należytego wykonania umowy"]
[null,"24. Zabezpieczenie należytego wykonania umowy (% wartości umowy)"]

{"sheet":"Lista","index":6,"n_rows":8,"n_cols":7,"rows_kept":8,"cut":false,"hidden":true,"merged":[]}
["Dostawy","O wartości do kwoty 10 000 PLN netto","Środki budżetowe","Przetarg nieograniczony","Tak","Przelew","Progi"]
["Usługi","O wartości do kwoty 30 000 PLN netto","Środki z NFOSiGW","Przetarg ograniczony","Nie","Gotówka","O wartości do kwoty 2.000,00 PLN netto"]
["Roboty budowlane","O wartości do równowartości kwoty 14 000 EUR netto","Środki UE","Negocjacje z ogłoszeniem",null,"Karta kredytowa","O wartości do kwoty 10.000,00 PLN netto"]
[null,"O wartości przekraczającej równowartość kwoty 14 000 EUR netto","Rezerwa celowa","Negocjacje bez ogłoszenia",null,"Inny","O wartości do kwoty 30.000,00 PLN netto"]
[null,null,"Inne","Dialog konkurecyjny",null,null,"O wartości do równowartości kwoty 14.000,00 EUR netto"]
[null,null,null,"Zamówienie z wolnej ręki",null,null,"O wartości do równowartości kwoty 14.000,00 EUR netto, procedura uproszczona"]
[null,null,null,"Zapytanie o cenę",null,null,"O wartości przekraczającej równowartość kwoty 14.000,00 EUR netto"]
[null,null,null,"Licytacja elektroniczna",null,null,"O wartości powyżej progu unijnego"]